[Event "Titled Tuesday Blitz April 4 Late 2023"]
[White "reevecanada"]
[Black "Han, Yichen"]
[BlackFideId "1054430"]
[WhiteElo "2442"]
[BlackElo "2342"]
[Result "1/2-1/2"]
[Round "07"]
[TimeControl "180+2"]
[Date "2023.04.04"]
[WhiteClock "0:00:07"]
[BlackClock "0:00:08"]

1. e4 {[%clk 0:03:00]}  e5 {[%clk 0:02:59]} 2. Nf3 {[%clk 0:02:59]}  Nc6 {[%clk 0:03:00]} 3. d4 {[%clk 0:02:58]}  exd4 {[%clk 0:03:00]} 4. Nxd4 {[%clk 0:02:59]}  Bc5 {[%clk 0:02:59]} 5. Nb3 {[%clk 0:02:59]}  Bb4+ {[%clk 0:02:59]} 6. c3 {[%clk 0:02:58]}  Be7 {[%clk 0:02:59]} 7. c4 {[%clk 0:02:58]}  Nf6 {[%clk 0:02:58]} 8. Bd3 {[%clk 0:02:58]}  Bb4+ {[%clk 0:02:54]} 9. Bd2 {[%clk 0:02:57]}  a5 {[%clk 0:02:53]} 10. a3 {[%clk 0:02:53]}  Bxd2+ {[%clk 0:02:51]} 11. N3xd2 {[%clk 0:02:54]}  d6 {[%clk 0:02:50]} 12. O-O {[%clk 0:02:53]}  O-O {[%clk 0:02:50]} 13. Nc3 {[%clk 0:02:52]}  Ne5 {[%clk 0:02:46]} 14. Be2 {[%clk 0:02:50]}  Ng6 {[%clk 0:02:46]} 15. f4 {[%clk 0:02:48]}  Re8 {[%clk 0:02:47]} 16. h3 {[%clk 0:02:41]}  c6 {[%clk 0:02:39]} 17. Qc2 {[%clk 0:02:39]}  Qb6+ {[%clk 0:02:34]} 18. Kh2 {[%clk 0:02:36]}  Qe3 {[%clk 0:02:33]} 19. Rf3 {[%clk 0:02:35]}  Qb6 {[%clk 0:02:24]} 20. Raf1 {[%clk 0:02:33]}  Qc7 {[%clk 0:02:10]} 21. g4 {[%clk 0:02:28]}  Bxg4 {[%clk 0:01:52]} 22. hxg4 {[%clk 0:02:26]}  Nxg4+ {[%clk 0:01:53]} 23. Kh1 {[%clk 0:02:22]}  Qb6 {[%clk 0:01:40]} 24. Na4 {[%clk 0:02:11]}  Qd4 {[%clk 0:01:35]} 25. Qc3 {[%clk 0:02:04]}  Qa7 {[%clk 0:01:22]} 26. Rg3 {[%clk 0:01:51]}  Nf2+ {[%clk 0:01:20]} 27. Kg2 {[%clk 0:01:47]}  Nxe4 {[%clk 0:01:11]} 28. Nxe4 {[%clk 0:01:46]}  Rxe4 {[%clk 0:01:12]} 29. Bd3 {[%clk 0:01:44]}  Re3 {[%clk 0:00:56]} 30. Qd2 {[%clk 0:01:24]}  Rae8 {[%clk 0:00:41]} 31. Rxe3 {[%clk 0:01:22]}  Rxe3 {[%clk 0:00:42]} 32. Bxg6 {[%clk 0:01:21]}  hxg6 {[%clk 0:00:40]} 33. Re1 {[%clk 0:01:09]}  Rxe1 {[%clk 0:00:38]} 34. Qxe1 {[%clk 0:01:09]}  Qd4 {[%clk 0:00:37]} 35. Qf1 {[%clk 0:01:06]}  b5 {[%clk 0:00:33]} 36. Nc3 {[%clk 0:00:53]}  bxc4 {[%clk 0:00:23]} 37. Qe2 {[%clk 0:00:48]}  d5 {[%clk 0:00:19]} 38. Qe8+ {[%clk 0:00:43]}  Kh7 {[%clk 0:00:19]} 39. Qxc6 {[%clk 0:00:42]}  Qd2+ {[%clk 0:00:16]} 40. Kf3 {[%clk 0:00:35]}  d4 {[%clk 0:00:16]} 41. Ne4 {[%clk 0:00:30]}  Qe3+ {[%clk 0:00:15]} 42. Kg2 {[%clk 0:00:30]}  Qxf4 {[%clk 0:00:08]} 43. Qd5 {[%clk 0:00:23]}  Qg4+ {[%clk 0:00:08]} 44. Kf2 {[%clk 0:00:16]}  Qf4+ {[%clk 0:00:07]} 45. Ke2 {[%clk 0:00:15]}  Qe3+ {[%clk 0:00:07]} 46. Kd1 {[%clk 0:00:15]}  f6 {[%clk 0:00:05]} 47. Nd2 {[%clk 0:00:14]}  c3 {[%clk 0:00:04]} 48. bxc3 {[%clk 0:00:13]}  dxc3 {[%clk 0:00:05]} 49. Nc4 {[%clk 0:00:12]}  Qf2 {[%clk 0:00:04]} 50. Qh1+ {[%clk 0:00:10]}  Kg8 {[%clk 0:00:04]} 51. Qd5+ {[%clk 0:00:10]}  Kf8 {[%clk 0:00:03]} 52. Kc1 {[%clk 0:00:09]}  Qf1+ {[%clk 0:00:02]} 53. Kc2 {[%clk 0:00:09]}  Qf2+ {[%clk 0:00:03]} 54. Kxc3 {[%clk 0:00:08]}  Qg3+ {[%clk 0:00:03]} 55. Kd4 {[%clk 0:00:07]}  Qf2+ {[%clk 0:00:03]} 56. Ke4 {[%clk 0:00:06]}  Qg2+ {[%clk 0:00:03]} 57. Kd4 {[%clk 0:00:06]}  Qxd5+ {[%clk 0:00:04]} 58. Kxd5 {[%clk 0:00:07]}  g5 {[%clk 0:00:04]} 59. Ke4 {[%clk 0:00:07]}  a4 {[%clk 0:00:04]} 60. Nb6 {[%clk 0:00:07]}  Ke7 {[%clk 0:00:05]} 61. Nxa4 {[%clk 0:00:07]}  Kd6 {[%clk 0:00:05]} 62. Nc3 {[%clk 0:00:08]}  Kc5 {[%clk 0:00:05]} 63. Kf5 {[%clk 0:00:08]}  Kc4 {[%clk 0:00:06]} 64. Nb1 {[%clk 0:00:07]}  Kb3 {[%clk 0:00:06]} 65. Kg4 {[%clk 0:00:08]}  g6 {[%clk 0:00:05]} 66. Kg3 {[%clk 0:00:08]}  f5 {[%clk 0:00:05]} 67. Kf3 {[%clk 0:00:08]}  g4+ {[%clk 0:00:05]} 68. Kf4 {[%clk 0:00:08]}  Ka4 {[%clk 0:00:06]} 69. Kg3 {[%clk 0:00:07]}  g5 {[%clk 0:00:06]} 70. Nd2 {[%clk 0:00:05]}  Kxa3 {[%clk 0:00:07]} 71. Nc4+ {[%clk 0:00:06]}  Kb4 {[%clk 0:00:07]} 72. Nd6 {[%clk 0:00:06]}  f4+ {[%clk 0:00:06]} 73. Kxg4 {[%clk 0:00:07]}  Kc3 {[%clk 0:00:07]} 74. Ne4+ {[%clk 0:00:07]}  Kd3 {[%clk 0:00:08]} 75. Nxg5 {[%clk 0:00:08]}  Ke3 {[%clk 0:00:08]} 76. Nh3 {[%clk 0:00:07]}  Ke4 {[%clk 0:00:08]} 77. Nxf4 {[%clk 0:00:07]} 1/2-1/2


[Site "https://www.chess.com"]

[Event "Titled Tuesday Blitz April 4 Late 2023"]
[White "Kielinkei"]
[Black "Jimenez Almeida, Luis David"]
[BlackFideId "22242244"]
[WhiteElo "2423"]
[BlackElo "2245"]
[Result "0-1"]
[Round "07"]
[TimeControl "180+2"]
[Date "2023.04.04"]
[WhiteClock "0:00:02"]
[BlackClock "0:00:19"]

1. d4 {[%clk 0:03:00]}  g6 {[%clk 0:02:58]} 2. e4 {[%clk 0:02:59]}  c6 {[%clk 0:02:58]} 3. Nf3 {[%clk 0:02:56]}  Na6 {[%clk 0:02:58]} 4. c3 {[%clk 0:02:51]}  Nc7 {[%clk 0:02:58]} 5. Bd3 {[%clk 0:02:50]}  Bg7 {[%clk 0:02:58]} 6. O-O {[%clk 0:02:50]}  d6 {[%clk 0:02:59]} 7. Qe2 {[%clk 0:02:46]}  Nf6 {[%clk 0:02:59]} 8. e5 {[%clk 0:02:44]}  dxe5 {[%clk 0:03:00]} 9. dxe5 {[%clk 0:02:44]}  Nfd5 {[%clk 0:02:59]} 10. c4 {[%clk 0:02:37]}  Nb6 {[%clk 0:02:48]} 11. h3 {[%clk 0:02:29]}  O-O {[%clk 0:02:45]} 12. b3 {[%clk 0:02:24]}  Ne6 {[%clk 0:02:45]} 13. Rd1 {[%clk 0:01:43]}  Qc7 {[%clk 0:02:44]} 14. Nc3 {[%clk 0:01:09]}  Nd7 {[%clk 0:02:42]} 15. Re1 {[%clk 0:01:03]}  Ndc5 {[%clk 0:02:35]} 16. Bc2 {[%clk 0:01:00]}  a5 {[%clk 0:02:34]} 17. Ne4 {[%clk 0:00:51]}  Nd7 {[%clk 0:01:55]} 18. Bb2 {[%clk 0:00:41]}  a4 {[%clk 0:01:55]} 19. Neg5 {[%clk 0:00:30]}  Ndc5 {[%clk 0:01:29]} 20. b4 {[%clk 0:00:28]}  a3 {[%clk 0:01:22]} 21. Bc3 {[%clk 0:00:28]}  Na4 {[%clk 0:01:09]} 22. Bxa4 {[%clk 0:00:26]}  Rxa4 {[%clk 0:01:07]} 23. Nxe6 {[%clk 0:00:27]}  Bxe6 {[%clk 0:01:07]} 24. Nd4 {[%clk 0:00:22]}  Bc8 {[%clk 0:01:01]} 25. Nb3 {[%clk 0:00:22]}  b6 {[%clk 0:00:56]} 26. Qe3 {[%clk 0:00:21]}  Be6 {[%clk 0:00:53]} 27. Qe4 {[%clk 0:00:13]}  Raa8 {[%clk 0:00:50]} 28. Rad1 {[%clk 0:00:14]}  c5 {[%clk 0:00:46]} 29. bxc5 {[%clk 0:00:12]}  bxc5 {[%clk 0:00:47]} 30. Rd5 {[%clk 0:00:08]}  Bxd5 {[%clk 0:00:41]} 31. cxd5 {[%clk 0:00:09]}  c4 {[%clk 0:00:31]} 32. Nd2 {[%clk 0:00:08]}  Rfc8 {[%clk 0:00:29]} 33. Nf3 {[%clk 0:00:06]}  Rab8 {[%clk 0:00:25]} 34. Nd4 {[%clk 0:00:06]}  Qc5 {[%clk 0:00:24]} 35. e6 {[%clk 0:00:06]}  f5 {[%clk 0:00:23]} 36. Qh4 {[%clk 0:00:05]}  Qxd5 {[%clk 0:00:21]} 37. Qxe7 {[%clk 0:00:04]}  Bxd4 {[%clk 0:00:20]} 38. Qf7+ {[%clk 0:00:03]}  Kh8 {[%clk 0:00:20]} 39. Bxd4+ {[%clk 0:00:02]}  Qxd4 {[%clk 0:00:19]} 40. e7 {[%clk 0:00:02]}  Re8 {[%clk 0:00:19]} 0-1


[Site "https://www.chess.com"]

[Event "Titled Tuesday Blitz April 4 Late 2023"]
[White "Smith, Garrett L"]
[Black "Zeynalli, Rashad"]
[WhiteFideId "2024829"]
[BlackFideId "13403320"]
[WhiteElo "2328"]
[BlackElo "2125"]
[Result "0-1"]
[Round "07"]
[TimeControl "180+2"]
[Date "2023.04.04"]
[WhiteClock "0:00:36"]
[BlackClock "0:00:24"]

1. e4 {[%clk 0:03:00]}  c5 {[%clk 0:02:59]} 2. a3 {[%clk 0:03:00]}  g6 {[%clk 0:02:45]} 3. b4 {[%clk 0:03:01]}  Bg7 {[%clk 0:02:43]} 4. Nc3 {[%clk 0:03:01]}  d6 {[%clk 0:02:41]} 5. Nf3 {[%clk 0:03:01]}  Nc6 {[%clk 0:02:35]} 6. Rb1 {[%clk 0:03:01]}  Nf6 {[%clk 0:02:31]} 7. Be2 {[%clk 0:02:59]}  O-O {[%clk 0:02:28]} 8. O-O {[%clk 0:02:59]}  b6 {[%clk 0:02:23]} 9. d3 {[%clk 0:02:58]}  Bb7 {[%clk 0:02:19]} 10. Re1 {[%clk 0:02:50]}  Qd7 {[%clk 0:02:10]} 11. Nd5 {[%clk 0:02:40]}  e6 {[%clk 0:01:54]} 12. Nxf6+ {[%clk 0:02:37]}  Bxf6 {[%clk 0:01:55]} 13. Bh6 {[%clk 0:02:33]}  Rfc8 {[%clk 0:01:54]} 14. c4 {[%clk 0:02:29]}  cxb4 {[%clk 0:01:33]} 15. axb4 {[%clk 0:02:29]}  d5 {[%clk 0:01:33]} 16. b5 {[%clk 0:02:15]}  Na5 {[%clk 0:01:32]} 17. e5 {[%clk 0:02:11]}  Bg7 {[%clk 0:01:30]} 18. Bxg7 {[%clk 0:02:05]}  Kxg7 {[%clk 0:01:31]} 19. cxd5 {[%clk 0:02:00]}  Qxd5 {[%clk 0:01:32]} 20. Qd2 {[%clk 0:01:53]}  h6 {[%clk 0:00:58]} 21. Qf4 {[%clk 0:01:52]}  Qd8 {[%clk 0:00:59]} 22. h4 {[%clk 0:01:49]}  Bd5 {[%clk 0:00:54]} 23. g4 {[%clk 0:01:42]}  Nb3 {[%clk 0:00:54]} 24. g5 {[%clk 0:01:41]}  h5 {[%clk 0:00:53]} 25. Bd1 {[%clk 0:01:33]}  Nc5 {[%clk 0:00:51]} 26. Re3 {[%clk 0:01:26]}  a6 {[%clk 0:00:49]} 27. Nd2 {[%clk 0:01:23]}  axb5 {[%clk 0:00:46]} 28. Rxb5 {[%clk 0:01:22]}  Ra1 {[%clk 0:00:47]} 29. Re1 {[%clk 0:01:21]}  Nxd3 {[%clk 0:00:45]} 30. Qf6+ {[%clk 0:01:17]}  Qxf6 {[%clk 0:00:45]} 31. exf6+ {[%clk 0:01:17]}  Kf8 {[%clk 0:00:46]} 32. Rf1 {[%clk 0:01:17]}  Nf4 {[%clk 0:00:39]} 33. Rxb6 {[%clk 0:01:04]}  Nh3+ {[%clk 0:00:38]} 34. Kh2 {[%clk 0:01:04]}  Nxf2 {[%clk 0:00:39]} 35. Rxf2 {[%clk 0:01:02]}  Rxd1 {[%clk 0:00:39]} 36. Nf3 {[%clk 0:00:49]}  Ke8 {[%clk 0:00:34]} 37. Ne5 {[%clk 0:00:42]}  Rh1+ {[%clk 0:00:34]} 38. Kg3 {[%clk 0:00:42]}  Rc3+ {[%clk 0:00:35]} 39. Kf4 {[%clk 0:00:35]}  Rxh4+ {[%clk 0:00:33]} 40. Ng4 {[%clk 0:00:36]}  Rxg4+ {[%clk 0:00:33]} 41. Ke5 {[%clk 0:00:36]}  Rgc4 {[%clk 0:00:24]} 0-1


[Site "https://www.chess.com"]

[Event "Titled Tuesday Blitz April 4 Late 2023"]
[White "Roebers, Eline"]
[Black "Wang, Alexander J"]
[WhiteFideId "1058401"]
[BlackFideId "30955270"]
[WhiteElo "2518"]
[BlackElo "2315"]
[Result "1-0"]
[Round "07"]
[TimeControl "180+2"]
[Date "2023.04.04"]
[WhiteClock "0:01:24"]
[BlackClock "0:00:30"]

1. e4 {[%clk 0:03:00]}  c5 {[%clk 0:02:59]} 2. Nf3 {[%clk 0:02:57]}  e6 {[%clk 0:02:59]} 3. d4 {[%clk 0:02:56]}  cxd4 {[%clk 0:02:59]} 4. Nxd4 {[%clk 0:02:57]}  Nc6 {[%clk 0:02:59]} 5. Nc3 {[%clk 0:02:57]}  Nf6 {[%clk 0:02:58]} 6. Ndb5 {[%clk 0:02:55]}  a6 {[%clk 0:02:52]} 7. Nd6+ {[%clk 0:02:49]}  Bxd6 {[%clk 0:02:47]} 8. Qxd6 {[%clk 0:02:50]}  Qe7 {[%clk 0:02:40]} 9. Bf4 {[%clk 0:02:48]}  Qxd6 {[%clk 0:02:28]} 10. Bxd6 {[%clk 0:02:49]}  b5 {[%clk 0:02:22]} 11. Bd3 {[%clk 0:02:45]}  Bb7 {[%clk 0:02:21]} 12. a4 {[%clk 0:02:36]}  b4 {[%clk 0:02:18]} 13. Ne2 {[%clk 0:02:35]}  a5 {[%clk 0:02:13]} 14. O-O-O {[%clk 0:02:31]}  Na7 {[%clk 0:01:44]} 15. f3 {[%clk 0:02:29]}  Bc6 {[%clk 0:01:40]} 16. b3 {[%clk 0:02:25]}  Ng8 {[%clk 0:01:35]} 17. Nd4 {[%clk 0:02:24]}  Ne7 {[%clk 0:01:35]} 18. Rhe1 {[%clk 0:02:12]}  Nec8 {[%clk 0:01:32]} 19. Bg3 {[%clk 0:02:11]}  Nb6 {[%clk 0:01:27]} 20. Nxc6 {[%clk 0:01:58]}  Nxc6 {[%clk 0:01:26]} 21. Bb5 {[%clk 0:01:57]}  O-O {[%clk 0:01:21]} 22. Bc7 {[%clk 0:01:52]}  Nc8 {[%clk 0:01:01]} 23. Rxd7 {[%clk 0:01:50]}  N6a7 {[%clk 0:00:57]} 24. Bc4 {[%clk 0:01:41]}  Nc6 {[%clk 0:00:48]} 25. Red1 {[%clk 0:01:39]}  N8a7 {[%clk 0:00:47]} 26. f4 {[%clk 0:01:29]}  h6 {[%clk 0:00:43]} 27. f5 {[%clk 0:01:26]}  exf5 {[%clk 0:00:37]} 28. exf5 {[%clk 0:01:27]}  Rac8 {[%clk 0:00:35]} 29. Bd6 {[%clk 0:01:26]}  Rfd8 {[%clk 0:00:31]} 30. Rxf7 {[%clk 0:01:25]}  Kh7 {[%clk 0:00:30]} 31. f6 {[%clk 0:01:24]} 1-0


[Site "https://www.chess.com"]

[Event "Titled Tuesday Blitz April 4 Late 2023"]
[White "Antonova, Nadezhda"]
[Black "Bellahcene, Bilel"]
[WhiteFideId "14700182"]
[BlackFideId "696358"]
[WhiteElo "1765"]
[BlackElo "2566"]
[Result "0-1"]
[Round "07"]
[TimeControl "180+2"]
[Date "2023.04.04"]
[WhiteClock "0:00:45"]
[BlackClock "0:01:47"]

1. Nf3 {[%clk 0:02:59]}  Nf6 {[%clk 0:02:58]} 2. b3 {[%clk 0:02:59]}  b6 {[%clk 0:02:53]} 3. g3 {[%clk 0:02:58]}  Bb7 {[%clk 0:02:54]} 4. Bg2 {[%clk 0:02:58]}  e6 {[%clk 0:02:52]} 5. Bb2 {[%clk 0:02:58]}  c5 {[%clk 0:02:53]} 6. c4 {[%clk 0:02:58]}  Be7 {[%clk 0:02:45]} 7. O-O {[%clk 0:02:58]}  O-O {[%clk 0:02:44]} 8. e3 {[%clk 0:02:56]}  d5 {[%clk 0:02:44]} 9. cxd5 {[%clk 0:02:56]}  Nxd5 {[%clk 0:02:44]} 10. d4 {[%clk 0:02:56]}  cxd4 {[%clk 0:02:44]} 11. Nxd4 {[%clk 0:02:56]}  Nc6 {[%clk 0:02:41]} 12. Nxc6 {[%clk 0:02:48]}  Bxc6 {[%clk 0:02:42]} 13. Nc3 {[%clk 0:02:43]}  Nxc3 {[%clk 0:02:39]} 14. Bxc3 {[%clk 0:02:38]}  Bxg2 {[%clk 0:02:28]} 15. Kxg2 {[%clk 0:02:38]}  Qc8 {[%clk 0:02:21]} 16. Rc1 {[%clk 0:02:37]}  Ba3 {[%clk 0:02:13]} 17. Rc2 {[%clk 0:02:37]}  Qb7+ {[%clk 0:02:11]} 18. Qf3 {[%clk 0:02:36]}  Qxf3+ {[%clk 0:02:11]} 19. Kxf3 {[%clk 0:02:36]}  Rac8 {[%clk 0:02:11]} 20. Rb1 {[%clk 0:02:07]}  a5 {[%clk 0:02:06]} 21. Ke2 {[%clk 0:01:36]}  Rc6 {[%clk 0:02:05]} 22. Kd3 {[%clk 0:01:29]}  Rfc8 {[%clk 0:01:47]} 23. Rd1 {[%clk 0:00:49]}  f6 {[%clk 0:01:47]} 24. Rdd2 {[%clk 0:00:48]}  e5 {[%clk 0:01:47]} 25. Ba1 {[%clk 0:00:45]}  e4+ {[%clk 0:01:47]} 0-1


[Site "https://www.chess.com"]

[Event "Titled Tuesday Blitz April 4 Late 2023"]
[White "Vovk, Orest"]
[Black "Manzone, Alessandro"]
[WhiteFideId "14113490"]
[BlackFideId "112488"]
[WhiteElo "2215"]
[BlackElo "2255"]
[Result "1/2-1/2"]
[Round "07"]
[TimeControl "180+2"]
[Date "2023.04.04"]
[WhiteClock "0:00:07"]
[BlackClock "0:00:04"]

1. h4 {[%clk 0:02:47]}  Nf6 {[%clk 0:02:57]} 2. h5 {[%clk 0:02:31]}  h6 {[%clk 0:02:55]} 3. Nc3 {[%clk 0:02:30]}  e5 {[%clk 0:02:55]} 4. d4 {[%clk 0:02:28]}  exd4 {[%clk 0:02:54]} 5. Qxd4 {[%clk 0:02:29]}  Nc6 {[%clk 0:02:54]} 6. Qa4 {[%clk 0:02:29]}  Bc5 {[%clk 0:02:51]} 7. g4 {[%clk 0:02:29]}  d5 {[%clk 0:02:37]} 8. g5 {[%clk 0:02:29]}  Ng4 {[%clk 0:02:27]} 9. Nh3 {[%clk 0:02:29]}  hxg5 {[%clk 0:02:18]} 10. Bxg5 {[%clk 0:02:26]}  Bxf2+ {[%clk 0:02:03]} 11. Nxf2 {[%clk 0:02:25]}  Qxg5 {[%clk 0:02:03]} 12. Nxg4 {[%clk 0:02:24]}  Qxg4 {[%clk 0:01:51]} 13. Qxg4 {[%clk 0:02:21]}  Bxg4 {[%clk 0:01:51]} 14. Nxd5 {[%clk 0:02:16]}  O-O-O {[%clk 0:01:50]} 15. O-O-O {[%clk 0:02:15]}  Rxh5 {[%clk 0:01:48]} 16. Rxh5 {[%clk 0:02:02]}  Bxh5 {[%clk 0:01:48]} 17. Bh3+ {[%clk 0:02:01]}  Kb8 {[%clk 0:01:49]} 18. Nf4 {[%clk 0:01:56]}  Rxd1+ {[%clk 0:01:45]} 19. Kxd1 {[%clk 0:01:57]}  g6 {[%clk 0:01:45]} 20. Nxh5 {[%clk 0:01:52]}  gxh5 {[%clk 0:01:44]} 21. Kd2 {[%clk 0:01:53]}  Ne5 {[%clk 0:01:40]} 22. b3 {[%clk 0:01:47]}  c5 {[%clk 0:01:33]} 23. Ke3 {[%clk 0:01:47]}  Kc7 {[%clk 0:01:34]} 24. Kf4 {[%clk 0:01:47]}  Ng6+ {[%clk 0:01:30]} 25. Kg5 {[%clk 0:01:41]}  h4 {[%clk 0:01:29]} 26. Bf5 {[%clk 0:01:26]}  Kd6 {[%clk 0:01:26]} 27. Kf6 {[%clk 0:00:47]}  Nf4 {[%clk 0:01:06]} 28. e3 {[%clk 0:00:44]}  Nd5+ {[%clk 0:01:04]} 29. Kxf7 {[%clk 0:00:39]}  Nxe3 {[%clk 0:01:04]} 30. Be4 {[%clk 0:00:39]}  b5 {[%clk 0:01:01]} 31. Kf6 {[%clk 0:00:37]}  b4 {[%clk 0:00:54]} 32. Kg5 {[%clk 0:00:37]}  Ke5 {[%clk 0:00:52]} 33. Bc6 {[%clk 0:00:33]}  h3 {[%clk 0:00:52]} 34. Kh4 {[%clk 0:00:33]}  h2 {[%clk 0:00:38]} 35. Kh3 {[%clk 0:00:31]}  Kd4 {[%clk 0:00:28]} 36. Kxh2 {[%clk 0:00:30]}  Kc3 {[%clk 0:00:28]} 37. Kg3 {[%clk 0:00:29]}  Kb2 {[%clk 0:00:25]} 38. Kf4 {[%clk 0:00:27]}  Nxc2 {[%clk 0:00:25]} 39. Ke5 {[%clk 0:00:27]}  Kxa2 {[%clk 0:00:18]} 40. Kd5 {[%clk 0:00:26]}  Kxb3 {[%clk 0:00:15]} 41. Kxc5 {[%clk 0:00:27]}  Kc3 {[%clk 0:00:15]} 42. Ba4 {[%clk 0:00:19]}  Nd4 {[%clk 0:00:15]} 43. Bd1 {[%clk 0:00:09]}  a5 {[%clk 0:00:15]} 44. Kb6 {[%clk 0:00:08]}  Nb3 {[%clk 0:00:15]} 45. Kb5 {[%clk 0:00:08]}  Kb2 {[%clk 0:00:12]} 46. Ka4 {[%clk 0:00:07]}  Nc5+ {[%clk 0:00:04]} 47. Kxa5 {[%clk 0:00:07]}  b3 {[%clk 0:00:04]} 48. Bxb3 {[%clk 0:00:07]} 1/2-1/2


[Site "https://www.chess.com"]

[Event "Titled Tuesday Blitz April 4 Late 2023"]
[White "lolliNOPE"]
[Black "Andreassen, Lars"]
[BlackFideId "1504878"]
[WhiteElo "2158"]
[BlackElo "2119"]
[Result "1-0"]
[Round "07"]
[TimeControl "180+2"]
[Date "2023.04.04"]
[WhiteClock "0:01:00"]
[BlackClock "0:00:12"]

1. e4 {[%clk 0:03:00]}  d6 {[%clk 0:02:57]} 2. d4 {[%clk 0:03:00]}  Nf6 {[%clk 0:02:56]} 3. Nc3 {[%clk 0:03:01]}  e5 {[%clk 0:02:55]} 4. Nf3 {[%clk 0:02:56]}  Nbd7 {[%clk 0:02:54]} 5. Bg5 {[%clk 0:02:55]}  Be7 {[%clk 0:02:54]} 6. Bc4 {[%clk 0:02:46]}  O-O {[%clk 0:02:50]} 7. O-O {[%clk 0:02:46]}  a6 {[%clk 0:02:46]} 8. a4 {[%clk 0:02:45]}  b6 {[%clk 0:02:44]} 9. dxe5 {[%clk 0:02:45]}  dxe5 {[%clk 0:02:40]} 10. Qe2 {[%clk 0:02:45]}  h6 {[%clk 0:02:36]} 11. Bxf6 {[%clk 0:02:37]}  Bxf6 {[%clk 0:02:35]} 12. Bd5 {[%clk 0:02:21]}  Ra7 {[%clk 0:02:32]} 13. Rad1 {[%clk 0:02:17]}  Qe7 {[%clk 0:02:31]} 14. Bc6 {[%clk 0:02:10]}  Nc5 {[%clk 0:02:11]} 15. b4 {[%clk 0:02:03]}  Ne6 {[%clk 0:02:03]} 16. Nd5 {[%clk 0:02:02]}  Qd8 {[%clk 0:01:53]} 17. Nxb6 {[%clk 0:01:53]}  cxb6 {[%clk 0:01:52]} 18. Rxd8 {[%clk 0:01:52]}  Rxd8 {[%clk 0:01:53]} 19. Bd5 {[%clk 0:01:50]}  Nf4 {[%clk 0:01:47]} 20. Qc4 {[%clk 0:01:39]}  b5 {[%clk 0:01:34]} 21. axb5 {[%clk 0:01:36]}  axb5 {[%clk 0:01:35]} 22. Qb3 {[%clk 0:01:33]}  Bg4 {[%clk 0:01:25]} 23. Re1 {[%clk 0:01:30]}  Rad7 {[%clk 0:01:17]} 24. c4 {[%clk 0:01:24]}  bxc4 {[%clk 0:01:17]} 25. Qxc4 {[%clk 0:01:25]}  Nxd5 {[%clk 0:01:02]} 26. exd5 {[%clk 0:01:24]}  Rxd5 {[%clk 0:01:03]} 27. h3 {[%clk 0:01:21]}  Bxf3 {[%clk 0:01:02]} 28. gxf3 {[%clk 0:01:22]}  Rd2 {[%clk 0:00:46]} 29. Re2 {[%clk 0:01:15]}  R2d4 {[%clk 0:00:40]} 30. Qb3 {[%clk 0:01:10]}  Rb8 {[%clk 0:00:39]} 31. b5 {[%clk 0:01:11]}  Rd6 {[%clk 0:00:31]} 32. Re1 {[%clk 0:01:06]}  Rdb6 {[%clk 0:00:31]} 33. Rb1 {[%clk 0:01:06]}  Rxb5 {[%clk 0:00:25]} 34. Qxb5 {[%clk 0:01:06]}  Rxb5 {[%clk 0:00:26]} 35. Rxb5 {[%clk 0:01:07]}  h5 {[%clk 0:00:20]} 36. Kf1 {[%clk 0:01:06]}  Kh7 {[%clk 0:00:18]} 37. Ke2 {[%clk 0:01:07]}  Kg6 {[%clk 0:00:18]} 38. Ke3 {[%clk 0:01:07]}  Kf5 {[%clk 0:00:19]} 39. Rb7 {[%clk 0:01:04]}  Ke6 {[%clk 0:00:18]} 40. Ke4 {[%clk 0:01:05]}  Bg5 {[%clk 0:00:16]} 41. Rb6+ {[%clk 0:01:04]}  Ke7 {[%clk 0:00:16]} 42. Kxe5 {[%clk 0:01:04]}  g6 {[%clk 0:00:14]} 43. f4 {[%clk 0:01:03]}  Bh4 {[%clk 0:00:15]} 44. f3 {[%clk 0:01:03]}  Bg3 {[%clk 0:00:15]} 45. Ke4 {[%clk 0:01:02]}  Bh2 {[%clk 0:00:14]} 46. f5 {[%clk 0:01:01]}  g5 {[%clk 0:00:13]} 47. f6+ {[%clk 0:01:00]}  Kd7 {[%clk 0:00:14]} 48. Kf5 {[%clk 0:01:00]}  Bf4 {[%clk 0:00:12]} 49. Rb7+ {[%clk 0:01:00]} 1-0


[Site "https://www.chess.com"]

[Event "Titled Tuesday Blitz April 4 Late 2023"]
[White "Veiga, Jose Francisco R P Neves"]
[Black "WindWhistler11"]
[WhiteFideId "1930087"]
[WhiteElo "2320"]
[BlackElo "2439"]
[Result "0-1"]
[Round "07"]
[TimeControl "180+2"]
[Date "2023.04.04"]
[WhiteClock "0:00:42"]
[BlackClock "0:00:05"]

1. Nf3 {[%clk 0:02:54]}  Nf6 {[%clk 0:02:59]} 2. d4 {[%clk 0:02:55]}  d6 {[%clk 0:02:59]} 3. Bg5 {[%clk 0:02:56]}  Nbd7 {[%clk 0:02:59]} 4. Nbd2 {[%clk 0:02:56]}  h6 {[%clk 0:02:59]} 5. Bh4 {[%clk 0:02:56]}  g6 {[%clk 0:02:59]} 6. e4 {[%clk 0:02:56]}  e5 {[%clk 0:02:59]} 7. c3 {[%clk 0:02:56]}  Bg7 {[%clk 0:02:59]} 8. Bd3 {[%clk 0:02:57]}  O-O {[%clk 0:02:59]} 9. O-O {[%clk 0:02:57]}  Qe7 {[%clk 0:02:58]} 10. h3 {[%clk 0:02:57]}  a6 {[%clk 0:02:57]} 11. Re1 {[%clk 0:02:57]}  b5 {[%clk 0:02:55]} 12. a4 {[%clk 0:02:57]}  bxa4 {[%clk 0:02:43]} 13. Qxa4 {[%clk 0:02:58]}  Bb7 {[%clk 0:02:42]} 14. Nc4 {[%clk 0:02:54]}  g5 {[%clk 0:02:35]} 15. Bg3 {[%clk 0:02:54]}  exd4 {[%clk 0:02:35]} 16. cxd4 {[%clk 0:02:55]}  Bxe4 {[%clk 0:02:31]} 17. Bxe4 {[%clk 0:02:52]}  Nxe4 {[%clk 0:02:31]} 18. Rxe4 {[%clk 0:02:48]}  Qxe4 {[%clk 0:02:19]} 19. Qxd7 {[%clk 0:02:48]}  Qc2 {[%clk 0:02:12]} 20. Qa4 {[%clk 0:02:44]}  Qxa4 {[%clk 0:02:04]} 21. Rxa4 {[%clk 0:02:45]}  Rfb8 {[%clk 0:02:04]} 22. Kf1 {[%clk 0:02:37]}  d5 {[%clk 0:02:03]} 23. Ne3 {[%clk 0:02:34]}  Rxb2 {[%clk 0:02:02]} 24. Nxd5 {[%clk 0:02:32]}  Rb1+ {[%clk 0:01:56]} 25. Ke2 {[%clk 0:02:31]}  Rab8 {[%clk 0:01:17]} 26. Rxa6 {[%clk 0:02:11]}  R8b3 {[%clk 0:01:13]} 27. Ra2 {[%clk 0:02:00]}  c6 {[%clk 0:01:08]} 28. Ne7+ {[%clk 0:02:01]}  Kh7 {[%clk 0:01:08]} 29. Nxc6 {[%clk 0:02:01]}  f5 {[%clk 0:01:08]} 30. Be5 {[%clk 0:02:01]}  g4 {[%clk 0:01:03]} 31. hxg4 {[%clk 0:02:02]}  fxg4 {[%clk 0:01:03]} 32. Nd2 {[%clk 0:01:59]}  R3b2 {[%clk 0:01:01]} 33. Rxb2 {[%clk 0:02:00]}  Rxb2 {[%clk 0:01:01]} 34. Bxg7 {[%clk 0:02:00]}  Kxg7 {[%clk 0:01:01]} 35. Kd3 {[%clk 0:02:01]}  h5 {[%clk 0:00:59]} 36. d5 {[%clk 0:01:57]}  h4 {[%clk 0:00:58]} 37. d6 {[%clk 0:01:47]}  Rb7 {[%clk 0:00:41]} 38. Ne4 {[%clk 0:01:44]}  h3 {[%clk 0:00:41]} 39. gxh3 {[%clk 0:01:45]}  gxh3 {[%clk 0:00:41]} 40. Ne5 {[%clk 0:01:17]}  h2 {[%clk 0:00:36]} 41. Ng3 {[%clk 0:01:16]}  Rb3+ {[%clk 0:00:36]} 42. Kc4 {[%clk 0:01:06]}  Rxg3 {[%clk 0:00:36]} 43. d7 {[%clk 0:01:07]}  h1=Q {[%clk 0:00:32]} 44. d8=Q {[%clk 0:01:07]}  Qc1+ {[%clk 0:00:31]} 45. Kb4 {[%clk 0:01:03]}  Qc3+ {[%clk 0:00:24]} 46. Ka4 {[%clk 0:00:57]}  Qa3+ {[%clk 0:00:19]} 47. Kb5 {[%clk 0:00:57]}  Rb3+ {[%clk 0:00:18]} 48. Kc6 {[%clk 0:00:57]}  Qa4+ {[%clk 0:00:09]} 49. Kd5 {[%clk 0:00:49]}  Rb5+ {[%clk 0:00:04]} 50. Ke6 {[%clk 0:00:49]}  Qa6+ {[%clk 0:00:04]} 51. Kf5 {[%clk 0:00:48]}  Qg6+ {[%clk 0:00:04]} 52. Kf4 {[%clk 0:00:44]}  Rb4+ {[%clk 0:00:04]} 53. Kf3 {[%clk 0:00:43]}  Qe4+ {[%clk 0:00:04]} 54. Kg3 {[%clk 0:00:42]}  Qxe5+ {[%clk 0:00:04]} 55. f4 {[%clk 0:00:42]}  Qxf4+ {[%clk 0:00:04]} 56. Kg2 {[%clk 0:00:43]}  Rb2+ {[%clk 0:00:04]} 57. Kg1 {[%clk 0:00:42]}  Qf2+ {[%clk 0:00:04]} 58. Kh1 {[%clk 0:00:42]}  Qh2# {[%clk 0:00:05]} 0-1


[Site "https://www.chess.com"]